Cogmind - Beta 16 @@@ ROGUE MODE // 2026.01.20 @ 18:14:46 Player: +Jones Result: Self-destructed Performance ------------- Evolutions (2) 1000 Regions Visited (5) 1000 Robots Destroyed (49) 245 Value Destroyed (982) 982 Prototype IDs (23) 460 Alien Tech Used (0) 0 Bonus (300) 300 TOTAL SCORE: 3987 Bonus ------- Aligned with FarCom 300 Cogmind --------- Core Integrity 496/550 Matter 198/300 Energy 140/140 System Corruption 0% Temperature Cool (0) Movement Treading (160) Location -8/Materials Parts ------- > --- POWER (1) -------- Light Deuterium Engine > --- PROPULSION (3) --- Light Treads Light Treads Light Treads > --- UTILITY (4) ------ Large Storage Unit Structural Scanner Hardened Medium Armor Plating System Shield > --- WEAPON (3) ------- Field Laser Heavy Assault Rifle High-powered Shotgun > --- INVENTORY (15) --- Advanced Treads High-capacity Storage Unit 0b10 Alert Chip Insulated Plating System Shield System Restoration Module EM Pulse Gun Field Laser Grenade Launcher Mining Laser Hammer Peak State ------------ > --- POWER ------------ Light Deuterium Engine > --- PROPULSION ------- Light Treads Light Treads Light Treads > --- UTILITY ---------- Large Storage Unit Structural Scanner Hardened Medium Armor Plating System Shield > --- WEAPON ----------- Field Laser Heavy Assault Rifle High-powered Shotgun > --- INVENTORY -------- Advanced Treads High-capacity Storage Unit 0b10 Alert Chip Insulated Plating System Shield System Restoration Module EM Pulse Gun Field Laser Grenade Launcher Mining Laser Hammer [Rating: 24] Favorites ----------- Power Light Ion Engine Engine Light Ion Engine Propulsion Light Treads Treads Light Treads Utility Large Storage Unit Device Seismic Detector Storage Large Storage Unit Hackware System Shield Protection Light Armor Plating Weapon EM Pulse Gun Energy Gun EM Pulse Gun Energy Cannon Beam Cannon Ballistic Gun Light Assault Rifle Ballistic Cannon Battle Cannon Launcher Grenade Launcher Special Weapon Mining Laser Build | -11 -10 -10 -10 -9 -8 ------- Run | Yrd Mat Min Exi Min Mat Slots Evolved 4 | . . . . . 4 Power . | . . . . . . Propulsion 1 | . . . . . 1 Utility 2 | . . . . . 2 Weapon 1 | . . . . . 1 Parts Attached 36 | 8 13 5 . . 10 Power 5 | 1 3 1 . . . Engine 5 | 1 3 1 . . . Core . | . . . . . . Reactor . | . . . . . . Propulsion 6 | 2 1 . . . 3 Treads 6 | 2 1 . . . 3 Leg . | . . . . . . Wheel . | . . . . . . Hover . | . . . . . . Flight . | . . . . . . Utility 9 | 2 1 3 . . 3 Device 3 | 1 . 1 . . 1 Storage 2 | 1 1 . . . . Processor . | . . . . . . Hackware 1 | . . . . . 1 Protection 3 | . . 2 . . 1 Artifact . | . . . . . . Weapon 16 | 3 8 1 . . 4 Energy Gun 7 | 2 3 . . . 2 Energy Cannon 1 | . 1 . . . . Ballistic Gun 4 | 1 1 . . . 2 Ballistic Cannon 1 | . . 1 . . . Launcher 1 | . 1 . . . . Special Weapon 2 | . 2 . . . . Impact Weapon . | . . . . . . Slashing Weapon . | . . . . . . Piercing Weapon . | . . . . . . Special Melee Weapon . | . . . . . . Unidentified Prototypes . | . . . . . . Parts Lost 8 | . . 3 . . 5 Power . | . . . . . . Propulsion 2 | . . . . . 2 Utility 3 | . . 2 . . 1 Weapon 3 | . . 1 . . 2 Highest Loss Streak 5 | . . 1 . . 5 To Critical Strikes . | . . . . . . Average Backups 9 | 1 6 13 13 15 11 Power . | . . . . . . Propulsion 2 | . 1 3 4 4 2 Utility 1 | . . 1 2 4 3 Weapon 5 | 1 4 7 7 7 5 Tool/Special . | . . . . . . Unused Backups 11 | . 1 2 . . 8 Power . | . . . . . . Propulsion 1 | . . . . . 1 Utility 6 | . . 1 . . 5 Weapon 4 | . 1 1 . . 2 Tool/Special . | . . . . . . Average Slot Usage (%) 96 | . 99 97 100 100 86 Engine 13 | . 14 14 14 14 9 Treads 27 | . 27 28 28 28 23 Device 7 | . 14 2 . . 3 Storage 13 | . 14 14 14 14 9 Hackware 1 | . . . . . 8 Protection 6 | . . 10 14 14 8 Energy Gun 18 | . 14 22 28 28 15 Ballistic Gun 4 | . 6 . . . 6 Launcher 1 | . 1 . . . . Special Weapon 2 | . 4 . . . . Peak Build Rating 24 | 7 8 15 12 12 24 Average Rating 10 | 4 7 8 11 12 18 On Entrance 8 | . 7 8 11 12 12 Avg Prop Armor Cover (%) 10 | . 10 . . . . Naked Turns . | . . . . . . Heaviest Build 43 | 12 28 33 32 32 43 Greatest Support 60 | 40 40 40 40 40 60 Greatest Overweight (x) 1 | . 1 . . . . Average Overweight (x) . | . . . . . . Largest Inventory Capacity 15 | 8 15 15 15 15 15 Average Capacity 12 | 6 10 15 15 15 15 Most Carried 15 | 2 9 15 15 15 15 Average Carried 9 | 1 6 13 13 15 11 Final Capacity 15 | 8 15 15 15 15 15 Final Carried 15 | 2 9 13 15 15 11 Class Distribution -------------------- 86% | Mutant 7% | Scavenger-Skirmisher 3% | Scavenger-Mutant Dominant Class ---------------- Mutant | -10/Materials Mutant | -10/Mines Mutant | -10/Exiles Mutant | -9/Mines Mutant | -8/Materials Resources | -11 -10 -10 -10 -9 -8 ----------- Run | Yrd Mat Min Exi Min Mat Matter Collected 1321 | 301 388 352 . . 280 Remotely . | . . . . . . Salvage Created 1358 | 107 416 459 . . 376 Parts 97 | 4 41 26 . . 26 Haulers Intercepted 2 | . 2 . . . . Recyclers Shooed . | . . . . . . Parts Field Recycled . | . . . . . . Retrieved Matter . | . . . . . . Parts Self-Destructed . | . . . . . . Prevented . | . . . . . . Parts Restored . | . . . . . . Kills | -11 -10 -10 -10 -9 -8 ------- Run | Yrd Mat Min Exi Min Mat Combat Hostiles Destroyed 27 | . 15 4 . . 8 Guns 11 | . 8 1 . . 2 Cannons 2 | . . 2 . . . AOE 14 | . 7 1 . . 6 Classes Destroyed 10 | 2 5 2 . . 1 Worker 2 | . 1 . . . 1 Builder 3 | . . 2 . . 1 Tunneler 1 | 1 . . . . . Hauler 2 | . 2 . . . . Recycler 6 | 1 . 4 . . 1 Operator 3 | . . . . . 3 Watcher 5 | . 3 . . . 2 Swarmer 13 | . 9 . . . 4 Grunt 12 | . 6 2 . . 4 Sentry 2 | . . 2 . . . Best Kill Streak 10 | 2 5 7 . . 10 Combat Bots Only 8 | . 3 2 . . 8 Max Kills in Single Turn 4 | 1 3 4 . . 2 Gunslinging . | . . . . . . Exploded 2 | . 2 1 . . 2 Melee . | . . . . . . Uniques/NPCs Destroyed . | . . . . . . Combat | -11 -10 -10 -10 -9 -8 -------- Run | Yrd Mat Min Exi Min Mat Hostile Shots Fired 127 | . 65 34 . . 28 Missed 31 | . 18 9 . . 4 Hits 96 | . 47 25 . . 24 Projectile 96 | . 47 25 . . 24 Critical Strikes 3 | . . 1 . . 2 Damage Taken 1397 | . 519 431 . . 447 Core 244 | . 98 92 . . 54 Absorbed by Shields . | . . . . . . Regen/Repaired (Parts) 201 | . 102 . . . 99 Core Remaining (%) 62 | 100 . . . 24 . Volleys Fired 127 | 7 59 30 . . 31 Largest 3 | 2 2 2 . . 3 Hottest 150 | 60 150 80 . . 120 Shots Fired 206 | 14 100 39 . . 53 Gun 155 | 14 82 18 . . 41 Cannon 27 | . 7 20 . . . Launcher 20 | . 8 1 . . 11 Special 4 | . 3 . . . 1 Kinetic 76 | 7 38 20 . . 11 Thermal 61 | 7 49 . . . 5 Explosive 20 | . 8 1 . . 11 Electromagnetic 49 | . 5 18 . . 26 Robot Hit Streak 10 | 6 8 10 . . 10 Robot Miss Streak 4 | 3 4 3 . . 2 Penetration Max . | . . . . . . Secondary Targets 2 | . 1 1 . . . Max Gunslinging Chain 1 | . 1 1 . . . Shots Hit Robots 117 | 8 49 26 . . 34 Core Hits 77 | 3 33 13 . . 28 Critical Kills . | . . . . . . Critical Parts Destroyed . | . . . . . . Critical Strikes 5 | . 3 1 . . 1 Burn 3 | . 3 . . . . Blast 1 | . . 1 . . . Corrupt 1 | . . . . . 1 Melee Attacks . | . . . . . . Impact . | . . . . . . Slashing . | . . . . . . Piercing . | . . . . . . Sneak Attacks . | . . . . . . Combat Hostiles . | . . . . . . Follow-up Attacks . | . . . . . . Damage Inflicted 3177 | 97 1225 585 . . 1270 Guns 1276 | 97 565 132 . . 482 Cannons 375 | . 91 284 . . . Explosions 1526 | . 569 169 . . 788 Melee . | . . . . . . Ramming . | . . . . . . Kinetic 669 | 39 197 284 . . 149 Thermal 871 | 58 437 169 . . 207 Explosive 1158 | . 543 . . . 615 Electromagnetic 479 | . 48 132 . . 299 Impact . | . . . . . . Slashing . | . . . . . . Piercing . | . . . . . . Highest Corruption . | . . . . . . Average Corruption . | . . . . . . Corruption Purged . | . . . . . . Corruption Blocked . | . . . . . . Overload Shots . | . . . . . . Overflow Damage 29 | . . . . . 29 Projectiles . | . . . . . . Explosions 29 | . . . . . 29 Melee . | . . . . . . Knockbacks 1 | . . 1 . . . Impact . | . . . . . . Kinetic 1 | . . 1 . . . Secondary . | . . . . . . Self-Inflicted Damage 190 | . 82 . . . 108 Shots 4 | . 2 . . . 2 Rammed . | . . . . . . Targets Rammed . | . . . . . . Kicked . | . . . . . . Crushed . | . . . . . . Highest Temperature 340 | . 340 180 . . 292 Average Temperature 80 | . 70 68 . . 105 Received Heat Transfer 504 | . 111 177 . . 216 Effects 1 | . 1 . . . . Short Circuit 1 | . 1 . . . . Siege Activations . | . . . . . . Martial Activations . | . . . . . . Shielding Activations . | . . . . . . Robots Disrupted . | . . . . . . Combat Hostiles . | . . . . . . Robots Corrupted 1 | . . . . . 1 Combat Hostiles . | . . . . . . Parts Fried 4 | . . . . . 4 Impact Corruptions . | . . . . . . Robots Melted . | . . . . . . Combat Hostiles . | . . . . . . Parts Melted 1 | . 1 . . . . Heat Transferred 1784 | 125 1335 100 . . 224 Parts Sabotaged . | . . . . . . Parts Stolen . | . . . . . . Parts Stripped . | . . . . . . Power Chain Reactions 4 | . . 2 . . 2 Alert | -11 -10 -10 -10 -9 -8 ------- Run | Yrd Mat Min Exi Min Mat Maximum Alert Level 1 | . 1 . . . . Low Security (%) 84 | 100 67 100 . 100 100 Level 1 15 | . 32 . . . . Level 2 . | . . . . . . Level 3 . | . . . . . . Level 4 . | . . . . . . Level 5 . | . . . . . . High Security . | . . . . . . Max Security . | . . . . . . Peak Influence 272 | 5 272 85 . . 162 Initial 51 | . . 51 . . . Average 101 | 1 161 25 . . 71 Influence Increases 1053 | 10 578 131 . . 334 Destroy 0b10 Robot/C 540 | . 300 80 . . 160 Destroy 0b10 Robot/NC 110 | 10 30 30 . . 40 Destroy Leader 104 | . 60 10 . . 34 Successful Hack 50 | . 41 . . . 9 Disable Machine 75 | . 30 . . . 45 Destroy Structure 114 | . 72 11 . . 31 Partial Spotted 15 | . . . . . 15 Lose Combat Pursuer 45 | . 45 . . . . Influence Decreases 979 | 10 445 264 . . 260 Entered New Map 82 | . . 82 . . . Time Decay 826 | 10 445 161 . . 210 Lost Part 71 | . . 21 . . 50 Squads Dispatched 4 | . 1 . . . 3 Investigation 1 | . 1 . . . . Extermination . | . . . . . . Reinforcement 3 | . . . . . 3 Assault . | . . . . . . Garrison . | . . . . . . Intercept . | . . . . . . Searches Triggered . | . . . . . . Construction Impeded . | . . . . . . Haulers Reinforced . | . . . . . . Active Scanning Responses . | . . . . . . Cargo Convoy Interrupts . | . . . . . . Stealth | -11 -10 -10 -10 -9 -8 --------- Run | Yrd Mat Min Exi Min Mat Distress Signals 4 | . 2 . . . 2 Communications Jammed . | . . . . . . Distress Signals . | . . . . . . Times Spotted 49 | . 26 4 . . 19 Peak Tracking Total 6 | . 5 2 . . 6 Tactical Retreats 2 | . 2 . . . . Traps | -11 -10 -10 -10 -9 -8 ------- Run | Yrd Mat Min Exi Min Mat Traps Triggered 3 | . . 3 . . . Indirectly . | . . . . . . Trap Hack Attempts . | . . . . . . Triggered . | . . . . . . Disarmed . | . . . . . . Reprogrammed . | . . . . . . Reused . | . . . . . . Traps Extracted . | . . . . . . Installed . | . . . . . . Triggered . | . . . . . . Machines | -11 -10 -10 -10 -9 -8 ---------- Run | Yrd Mat Min Exi Min Mat Machines Disabled 5 | . 2 . . . 3 Max in Single Turn 2 | . 2 . . . 2 Machines Repaired . | . . . . . . Machines Dismantled . | . . . . . . Machines Sabotaged . | . . . . . . Overloaded Fab Kills . | . . . . . . Hacking | -11 -10 -10 -10 -9 -8 --------- Run | Yrd Mat Min Exi Min Mat Machines Accessed 17 | . 10 1 2 . 4 Terminals 11 | . 8 . . . 3 Fabricators . | . . . . . . Repair Stations 2 | . 1 . . . 1 Recycling Units 1 | . 1 . . . . Scanalyzers . | . . . . . . Garrison Access . | . . . . . . Total Hacks 45 | . 33 1 2 . 9 Successful 29 | . 19 1 2 . 7 Failed 15 | . 13 . . . 2 Catastrophic 2 | . 1 . . . 1 Database Lockouts 1 | . 1 . . . . Manual 31 | . 25 . 1 . 5 Terminals 33 | . 28 . . . 5 Fabricators . | . . . . . . Repair Stations 7 | . 3 . . . 4 Recycling Units 2 | . 2 . . . . Scanalyzers . | . . . . . . Garrison Access . | . . . . . . Terminal Hacks 10 | . 6 1 2 . 1 Record 1 | . . . 1 . . Robot Analysis 2 | . 2 . . . . Open Door 1 | . . 1 . . . Branch Access Points 1 | . . . . . 1 Terminal Index 1 | . 1 . . . . Locate Traps 2 | . 2 . . . . Hauler Manifests 1 | . 1 . . . . Proto ID Catalog 1 | . . . 1 . . Fabricator Hacks . | . . . . . . Repair Station Hacks 6 | . 2 . . . 4 Scan Component 3 | . 1 . . . 2 Repair 3 | . 1 . . . 2 Recycling Unit Hacks 1 | . 1 . . . . Retrieve Components 1 | . 1 . . . . Scanalyzer . | . . . . . . Garrison Access Hacks . | . . . . . . Unauthorized Hacks 12 | . 10 . . . 2 Terminals 11 | . 9 . . . 2 Botnet 3 | . 1 . . . 2 Operators 1 | . 1 . . . . Skim 7 | . 7 . . . . Fabricators . | . . . . . . Repair Stations . | . . . . . . Recycling Units 1 | . 1 . . . . Reject 1 | . 1 . . . . Scanalyzers . | . . . . . . Garrison Access . | . . . . . . Data Cores Recovered . | . . . . . . Used . | . . . . . . Hacking Detections 13 | . 9 . . . 4 Full Trace Events 1 | . 1 . . . . Feedback Events . | . . . . . . Feedback Blocked . | . . . . . . Robot Schematics Acquired . | . . . . . . Robots Built . | . . . . . . Authchips . | . . . . . . Time . | . . . . . . Total Robot Build Rating . | . . . . . . Part Schematics Acquired . | . . . . . . Parts Built . | . . . . . . Authchips . | . . . . . . Time . | . . . . . . Total Part Build Rating . | . . . . . . Part Studies Acquired . | . . . . . . Parts Repaired 3 | . 1 . . . 2 Time 106 | . 36 . . . 70 Parts Recycled . | . . . . . . Recycled Matter . | . . . . . . Retrieved Matter . | . . . . . . Retrieved Components 10 | . 10 . . . . Parts Scanalyzed . | . . . . . . Part Schematics Acquired . | . . . . . . Parts Damaged . | . . . . . . Bothacking | -11 -10 -10 -10 -9 -8 ------------ Run | Yrd Mat Min Exi Min Mat Used RIF Installer . | . . . . . . Robots Hacked . | . . . . . . Non-combat . | . . . . . . Combat . | . . . . . . Robot Hacks Applied . | . . . . . . Relay Couplers Released . | . . . . . . Fabnet Peak Effective % . | . . . . . . Robots Rewired . | . . . . . . Allies Hacked . | . . . . . . Hacks Repelled . | . . . . . . Allies | -11 -10 -10 -10 -9 -8 -------- Run | Yrd Mat Min Exi Min Mat Total Allies . | . . . . . . Largest Group . | . . . . . . Highest-Rated Group . | . . . . . . Highest-Rated Ally . | . . . . . . Total Orders . | . . . . . . Ally Attacks . | . . . . . . Total Damage . | . . . . . . Kills . | . . . . . . Allies Corrupted . | . . . . . . Allies Melted . | . . . . . . Intel | -11 -10 -10 -10 -9 -8 ------- Run | Yrd Mat Min Exi Min Mat Active Infowar (turns) 1669 | 43 1347 43 . . 236 Structural 236 | . . . . . 236 Seismic 1433 | 43 1347 43 . . . Robot Analysis Total 2 | . 2 . . . . Derelict Logs Recovered 2 | . . 1 . 1 . Drone Launches . | . . . . . . Drone Recoveries . | . . . . . . Exploration | -11 -10 -10 -10 -9 -8 ------------- Run | Yrd Mat Min Exi Min Mat Turns Passed 3071 | 95 1347 608 358 81 582 Spaces Moved 1505 | 42 653 294 223 50 243 Core 6 | 6 . . . . . Treads 1499 | 36 653 294 223 50 243 Legs . | . . . . . . Wheels . | . . . . . . Hover . | . . . . . . Flight . | . . . . . . Fastest Speed 50 | 50 160 160 160 160 160 Average Speed 162 | 144 165 160 160 160 160 Slowest Speed 240 | 160 240 160 160 160 160 Overloaded Moves . | . . . . . . Propulsion Burnouts . | . . . . . . Robots Hopped . | . . . . . . Potential Cave-ins . | . . . . . . Cave-ins Triggered . | . . . . . . Exploration Rate (%) 44 | 3 95 68 59 20 23 Regions Visited 5 Branch Regions 3 Pre-discovered Areas 1 | . . . 1 . . Known Exits Taken 1 | . 1 . . . . Unknown Exits Taken 4 | 1 . 1 1 1 . Scrap Searched . | . . . . . . Spaces Dug 4 | . 3 . . . 1 Terrain Destroyed 157 | . 92 12 . . 53 Melee . | . . . . . . Projectile 6 | . 3 2 . . 1 AOE 151 | . 89 10 . . 52 Terrain Rammed . | . . . . . . Walls Destroyed . | . . . . . . Machines Disabled . | . . . . . . Actions | -11 -10 -10 -10 -9 -8 --------- Run | Yrd Mat Min Exi Min Mat Total 1917 | 59 811 391 224 51 381 Wait 177 | 1 55 37 . 2 82 Move 1500 | 41 652 293 222 49 243 Hop . | . . . . . . Pick Up 31 | 1 11 12 2 . 5 Fast Attach 15 | 8 5 . . . 2 Attach 12 | . . 4 . . 8 Detach 1 | 1 . . . . . Swap 37 | . 18 9 . . 10 Drop 17 | . 11 6 . . . Fire 127 | 7 59 30 . . 31 Melee . | . . . . . . Ram . | . . . . . . Kick . | . . . . . . Crush . | . . . . . . Escape Stasis . | . . . . . . Rewire . | . . . . . . Trap . | . . . . . . Miscellaneous . | . . . . . . Route ------- -11/Scrapyard -10/Materials (discovered 6 exits: *Mat x3 / *Min x2 / [*Sub]) -10/Mines (discovered 2 exits: *Mat / *Exi) -10/Exiles -9/Mines -8/Materials (discovered 2 exits: Fac / Sto) History --------- Turn | Location | Event 12 | -11/Scrapyard | Discovered new exit (range 13) 96 | -11/Scrapyard | Entered Materials 315 | -10/Materials | Build established: Mutant 357 | -10/Materials | Discovered new exit (range 7) 448 | -10/Materials | Discovered new exit (range 16) 490 | -10/Materials | Central database locked down 564 | -10/Materials | Identified exit to Materials 564 | -10/Materials | Identified exit to Mines 629 | -10/Materials | Learned Storage trap positions 669 | -10/Materials | Discovered new exit (range 6) 696 | -10/Materials | Derelicts attacked the area 728 | -10/Materials | Learned location of 1 exit from Storage 765 | -10/Materials | Learned Storage trap positions 811 | -10/Materials | Learned Storage stockpile data 865 | -10/Materials | Learned 2 Mines zone layouts 1132 | -10/Materials | Repaired Broken Lgt. Treads 1443 | -10/Materials | Entered Mines 1478 | -10/Mines | Core integrity fell below 50% 1496 | -10/Mines | Discovered exit to Materials (range 15) 1759 | -10/Mines | Learned location of 1 exit from Materials 1852 | -10/Mines | Deemed a non-threat by the Exiles lab entrance 1852 | -10/Mines | Discovered new exit (range 5) 1950 | -10/Mines | Met a Derelict who couldn't figure out how to use a Trap Extractor 2051 | -10/Mines | Entered Exiles 2088 | -10/Exiles | Met 8R-AWN 2117 | -10/Exiles | Met EX-HEX 2160 | -10/Exiles | Met EX-BIN 2179 | -10/Exiles | Aligned with FarCom system 2181 | -10/Exiles | Given EX-Vault access code 2218 | -10/Exiles | Opened EX-Vault 2231 | -10/Exiles | Found 0b10 Alert Chip 2260 | -10/Exiles | Warned to stay clear of 0b10 Research branches 2308 | -10/Exiles | Met EX-DEC 2315 | -10/Exiles | Learned location of Zion (-6) 2396 | -10/Exiles | Discovered new exit (range 10) 2409 | -10/Exiles | Left Exiles lab with 0b10 Alert Chip 2409 | -10/Exiles | Entered Mines 2448 | -9/Mines | Discovered new exit (range 7) 2490 | -9/Mines | Entered Materials 2490 | -8/Materials | Evolved 4 slots: Propulsion x1, Utility x2, Weapon x1 2491 | -8/Materials | Identified exit to Storage 2492 | -8/Materials | Identified exit to Factory 2738 | -8/Materials | Destroyed 8 combat bots 2741 | -8/Materials | Lost 5 parts (2n1u2w) 2761 | -8/Materials | Repaired Grenade Launcher 2811 | -8/Materials | Repaired Corrupted Hvy. Assault Rifle 3072 | -8/Materials | Self-destructed Last Messages --------------- 03037_ K-01 Serf collects debris. 03038_ Acquired 22 matter. 03041_ K-01 Serf collects debris. 03043_ O-16 Technician destroyed. 03043_ W-25 Informer destroyed. 03044_ K-01 Serf collects debris. 03046_ R-06 Scavenger collects Sml. Matter Pod. 03049_ K-01 Serf collects debris. 03062_ Connecting with Repair Station... 03064_ K-01 Serf collects debris. 03072_ Connecting with Terminal... >>Trojan(Botnet) Trojan loaded successfully. Testing... Terminal linked with 1 system. Awaiting botnet instructions. >>Access(Branch) Found 1 branch access point: (38,36) Storage Map updated. Map ----- +----------------------------------------------------+ | ???????????????????????????????????????????????? | | ??????????????????????????????????????>????????? | | ???????????????????????????????????????????????? | | ???????????????????????????????????????????????? | | ???????????????????????????????????????????????? | | ??????????????? ????????????????????????????? | | ??????????????? #???????????????????????????? | | ??????????????? +???????????????????????????? | | ??????????????? #???????????????????????????? | | ??????????????? #???????????????????????????? | | ??????????????? #???????????????????????????? | | ??????????????? #???????????????????????????? | | ??????????????? #???????????????????????????? | | ??????????????? #???????????????????????????? | | ???????????????# #???????????????????????????? | | ???????????????# #???????????????????????????? | | ???????????????# #???????????????????????????? | | ??????????????## ##??????????????????????????? | | ???????######## ####### ????????????? | | ???????# ###########+###????????????? | | ???????# T ### ##????????????? | | ???????# ### "#????????????? | | ???????####+### ### T?????????????? | | ???????# ### ##"" "%= "#????????????? | | ???????# #?? ##"T ""= ##????????????? | | ???????# """ #?? ##""@ "" ##????????????? | | ????##?# """ #?? #### """ =##????????????? | | ???? ?# """ #?? #### "" k%##????????????? | | ??? ## #?? #### """ ##????????????? | | ? ## #??? #### "" ##????????????? | | # """ ##]] #?? #""" """ ##????????????? | | # """ ##]] = ### #"R " ##????????????? | | # """ ## ### #""" #### ##### | | # ##! ## #### #######+####### | | # """ ## ## #### = | | # """ ##+#### # # | | # """ + ^ # | | # # ######### ##############+ | | # # %## ### ### # #### | | ####### ## # # w# """ ##?????? | | # # ^ ########### / "T" ##?????? | | # # % # ##?????? | | # " # """ """ # ##?????? | | #""" # "R """ # ##?????? | | #""" # """ """ #########?????? | | #""" + #########?????? | | # "" # ##????????????? | | #""" =###+## = ##????????????? | | #"" ## # ######## ##????????????? | | #"" ## # # T # ###???????????? | +----------------------------------------------------+ Best States ------------- Heat Dissipation 31 Energy Generation 14 Energy Capacity 250 Matter Stores 300 Matter Capacity 300 Sight Range 16 Terrain Scan Density 10 Armor Coverage 225 Evasion (%) 40 Recoil Reduction 3 Defensive Hacking 10 Trap Extractor Capacity 6 Item Schematics ----------------- None Robot Schematics ------------------ None Fabricated ------------ Nothing Repaired ---------- Lgt. Treads | 27% | -10/Materials | Broken Grenade Launcher | 10% | -8/Materials Hvy. Assault Rifle | 60% | -8/Materials | Corrupted Studied --------- None Alien Tech Used ----------------- None Achievements -------------- None Challenges ------------ None Game ------ Seed WaveCorruptionReconfigurator Manual? 0 Play Time 00:22:21 Cumulative 346.8 hours Start 2026.01.20 @ 17:52:42 End 2026.01.20 @ 18:14:46 Sessions 1 Manual Loads 0 Difficulty Rogue Special Mode None Game No. 279 Rogue 279 Adventurer 0 Explorer 0 Win Type - Total 2 Types 2/0/0/0/0/0/0/0/0/0 Lore% 62 Gallery% 70 Achievement% 48 Wizard Run 0 Options --------- Layout 1 ASCII 0 Keyboard 0 Movement Mouse Keybinds 0 Fullscreen 1 Font 32/SmallcapsGlow Map View 50x35 Zoom Use 0% Tactical HUD 1 Map Filters NONE Filters NONE Steam 1 RUN: 994e8324-edcd-496c-820b-1d96aacb73be